[Event "Tirnavia Reti Memorial-IM 2022"]
[Site "Trnava"]
[Date "2022.08.14"]
[Round "5.7"]
[White "Bures, Jaroslav"]
[Black "Straka, Jozef"]
[Result "1/2-1/2"]
[ECO "C29"]
[WhiteElo "2416"]
[BlackElo "2300"]
[Annotator "RC"]
[PlyCount "60"]
[EventDate "2022.08.10"]
[EventType "tourn"]
[EventCountry "SVK"]
[SourceTitle "playchess.com"]
[Source "ChessBase"]
[SourceQuality "1"]
[TimeControl "40/5400+30:1800+30"]

1. e4 {[%emt 0:00:04]} e5 {[%emt 0:00:06]} 2. Nc3 {[%emt 0:00:40]} Nf6 {[%emt 0:01:22]} 3. f4 {[%emt 0:00:01]} d5 {[%emt 0:01:04]} 4. fxe5 {[%emt 0:00:02]} Nxe4 {[%emt 0:00:11]} 5. Qf3 {[%emt 0:00:02]} Nxc3 {[%emt 0:02:19]} 6. dxc3 {[%emt 0:00:10]} Be6 {[%emt 0:07:01]} 7. Ne2 {[%emt 0:08:59]} Nd7 {[%emt 0:04:34]} 8. Qg3 {[%emt 0:09:29]} c5 {[%emt 0:11:00]} 9. Nf4 {[%emt 0:02:02]} Qb6 {[%emt 0:00:51]} 10. Be2 {[%emt 0:13:11]} Nxe5 {[%emt 0:18:48]} 11. Nxd5 {[%emt 0:02:05]} Bxd5 {[%emt 0:00:52]} 12. Qxe5+ {[%emt 0:00:23]} Be6 {[%emt 0:13:00]} 13. O-O {[%emt 0:07:34]} O-O-O {[%emt 0:04:47]} 14. Rxf7 {[%emt 0:12:35]} Rd5 {[%emt 0:09:13]} 15. Rc7+ {[%emt 0:01:15]} Kb8 {[%emt 0:05:38]} 16. Rxb7+ {[%emt 0:00:02]} Kxb7 {[%emt 0:00:40]} 17. Bf3 {[%emt 0:00:01]} Qc6 {[%emt 0:07:29]} 18. Qe2 {[%emt 0:08:08]} c4 {[%emt 0:00:19]} 19. Kh1 {[%emt 0:19:16]} Bc5 {[%emt 0:01:20]} 20. b3 {[%emt 0:01:05]} Rf8 {[%emt 0:01:09]} 21. bxc4 {[%emt 0:01:21]} Rxf3 {[%emt 0:00:23]} 22. Rb1+ {[%emt 0:00:01]} Bb6 {[%emt 0:03:32]} 23. cxd5 {[%emt 0:01:15]} Bxd5 {[%emt 0:00:30]} 24. c4 {[%emt 0:03:13]} Qe6 {[%emt 0:03:35]} 25. Qd1 {[%emt 0:02:07]} Rf2 {[%emt 0:00:39]} 26. cxd5 {[%emt 0:00:58]} Qe4 {[%emt 0:00:30]} 27. Qg1 {[%emt 0:00:49]} Rxg2 {[%emt 0:01:49]} 28. Rxb6+ {[%emt 0:00:10]} axb6 {[%emt 0:00:01]} 29. Qxg2 {[%emt 0:00:21]} Qe1+ {[%emt 0:00:01]} 30. Qg1 {[%emt 0:00:07]} Qe4+ {[%emt 0:00:04]} 1/2-1/2

[Event "Tirnavia Reti Memorial-IM 2022"]
[Site "Trnava"]
[Date "2022.08.14"]
[Round "5.8"]
[White "Svana, Peter"]
[Black "Skreno, Vladimir"]
[Result "1-0"]
[ECO "B32"]
[WhiteElo "2280"]
[BlackElo "2083"]
[Annotator "RC"]
[PlyCount "61"]
[EventDate "2022.08.10"]
[EventType "tourn"]
[EventCountry "SVK"]
[SourceTitle "playchess.com"]
[Source "ChessBase"]
[SourceQuality "1"]
[TimeControl "40/5400+30:1800+30"]

1. e4 {[%emt 0:00:04]} c5 {[%emt 0:00:25]} 2. Nf3 {[%emt 0:00:05]} Nc6 {[%emt 0:01:45]} 3. d4 {[%emt 0:00:22]} cxd4 {[%emt 0:00:34]} 4. Nxd4 {[%emt 0:00:06]} e5 {[%emt 0:00:07]} 5. Nb5 {[%emt 0:00:05]} a6 {[%emt 0:00:04]} 6. Nd6+ {[%emt 0:00:13]} Bxd6 {[%emt 0:00:05]} 7. Qxd6 {[%emt 0:00:08]} Qe7 {[%emt 0:00:03]} 8. Qd2 {[%emt 0:03:41]} Nf6 {[%emt 0:03:58]} 9. Nc3 {[%emt 0:00:18]} d6 {[%emt 0:02:27]} 10. b3 {[%emt 0:00:50]} b5 {[%emt 0:06:49]} 11. Bb2 {[%emt 0:02:08]} O-O {[%emt 0:02:15]} 12. O-O-O {[%emt 0:02:13]} Rd8 {[%emt 0:02:46]} 13. Nd5 {[%emt 0:00:53]} Nxd5 {[%emt 0:00:30]} 14. exd5 {[%emt 0:00:28]} Nb8 {[%emt 0:01:58]} 15. f4 {[%emt 0:00:45]} f6 {[%emt 0:05:01]} 16. Kb1 {[%emt 0:03:57]} Nd7 {[%emt 0:02:18]} 17. g4 {[%emt 0:01:37]} exf4 {[%emt 0:10:13]} 18. Qxf4 {[%emt 0:00:24]} Ne5 {[%emt 0:01:06]} 19. Rg1 {[%emt 0:01:28]} Re8 {[%emt 0:07:54]} 20. Rg3 {[%emt 0:11:10]} Bd7 {[%emt 0:03:26]} 21. Qd4 {[%emt 0:06:45]} a5 {[%emt 0:07:24]} 22. h4 {[%emt 0:01:57]} b4 {[%emt 0:05:45]} 23. g5 {[%emt 0:02:37]} f5 {[%emt 0:10:07]} 24. h5 {[%emt 0:01:12]} Rf8 {[%emt 0:11:28]} 25. Qf4 {[%emt 0:02:13]} Rac8 {[%emt 0:04:32]} 26. Re1 {[%emt 0:02:54]} Rfe8 {[%emt 0:03:32]} 27. Rge3 {[%emt 0:02:02]} Qf7 {[%emt 0:00:47]} 28. h6 {[%emt 0:05:58]} Qxd5 {[%emt 0:05:40]} 29. hxg7 {[%emt 0:03:37]} Qd2 {[%emt 0:00:41]} 30. Bd3 {[%emt 0:01:13]} Nxd3 {[%emt 0:00:29]} 31. Rxe8+ {[%emt 0:00:15]} 1-0

[Event "Tirnavia Reti Memorial-IM 2022"]
[Site "Trnava"]
[Date "2022.08.14"]
[Round "5.9"]
[White "Leszko, Bence"]
[Black "Petran, Peter"]
[Result "1-0"]
[ECO "B10"]
[WhiteElo "2241"]
[BlackElo "2234"]
[Annotator "TA"]
[PlyCount "68"]
[EventDate "2022.08.10"]
[EventType "tourn"]
[EventCountry "SVK"]
[SourceTitle "playchess.com"]
[Source "ChessBase"]
[SourceQuality "1"]
[TimeControl "40/5400+30:1800+30"]

{[%evp 9,68,44,50,44,47,41,40,18,5,-6,18,0,14,0,0,0,0,0,0,-4,-14,-13,0,0,0,0,0,0,0,0,17,-63,-54,-51,-9,-41,-26,-16,0,0,5,-35,-18,-105,-71,-144,-167,-196,-185,-202,-194,-195,-180,-181,-61,-58,1163,-20,1410,0,1377]} 1. e4 {[%emt 0:16:51]} c6 {[%emt 0:00:11]} 2. Nf3 {[%emt 0:00:07]} d5 {[%emt 0:00:10]} 3. d3 {[%emt 0:00:21]} g6 {[%emt 0:02:17]} 4. e5 {[%emt 0:00:17]} d4 {[%emt 0:01:59] [#]} 5. h3 $146 {[%emt 0:10:37]} ({Predecessor:} 5. c3 c5 6. Nbd2 Nc6 7. Ne4 Bg7 8. Bf4 dxc3 9. bxc3 f6 10. Nxc5 fxe5 11. Bg3 {½-½ (68) Xiong,J (2688)-Tatarinov,D (2314) Chess.com INT 2022}) 5... c5 {[%emt 0:00:57]} 6. g3 {[%emt 0:00:52] B10: Caro-Kann: 2 d3 and 2 c4.} Nc6 {[%emt 0:00:15]} 7. Bg2 {[%emt 0:00:22]} Bg7 {[%emt 0:02:25]} 8. Bf4 {[%emt 0:02:45] White is slightly better.} h6 {[%emt 0:01:34]} 9. g4 {[%emt 0:02:33]} Be6 {[%emt 0:02:31]} 10. Nbd2 {[%emt 0:07:39]} Bd5 {[%emt 0:03:49][%cal Og7e5]} 11. Qe2 {[%emt 0:07:29]} e6 {[%emt 0:03:07]} 12. c4 {[%emt 0:05:30]} dxc3 {[%emt 0:01:24]} 13. bxc3 {[%emt 0:00:09]} Nge7 {[%emt 0:00:21]} 14. Ne4 {[%emt 0:11:44]} Bxe4 {[%emt 0:02:04]} 15. Qxe4 {[%emt 0:00:11]} Nd5 {[%emt 0:05:01]} 16. Bd2 {[%emt 0:02:02]} Rc8 {[%emt 0:00:31]} 17. O-O {[%emt 0:01:27]} O-O {[%emt 0:01:38]} 18. Rfd1 {[%emt 0:01:11]} Qc7 {[%emt 0:02:12][%cal Rc6e5]} 19. c4 {[%emt 0:01:53]} Nb6 {[%emt 0:01:08]} 20. Bc3 {[%emt 0:05:14]} (20. Bf4 $11) 20... Na4 $15 {[%emt 0:00:46]} 21. Bd2 {[%emt 0:00:49]} Rfd8 {[%emt 0:05:35] Hoping for ...Nb2.} 22. Re1 {[%emt 0:01:11]} Rd7 {[%emt 0:12:42]} 23. Rab1 {[%emt 0:00:33]} Rcd8 {[%emt 0:38:16]} 24. Rb3 {[%emt 0:08:26]} Nb6 {[%emt 0:00:30]} 25. Bf4 {[%emt 0:00:30]} Nb4 {[%emt 0:00:30][%cal Rb4d3]} 26. d4 {[%emt 0:00:30]} (26. Bf1 $11 {keeps the balance.}) 26... Nxc4 {[%emt 0:00:30][%cal Rd7d4] White must now prevent ...Rxd4.} 27. Rc1 {[%emt 0:00:30] [#]} (27. dxc5 $142 Qxc5 28. Bf1) 27... b5 $1 $17 {[%emt 0:00:30]} 28. a3 {[%emt 0:00:30]} Rxd4 {[%emt 0:00:02]} 29. Nxd4 {[%emt 0:00:57]} Rxd4 {[%emt 0:00:30]} 30. Qa8+ {[%emt 0:00:30]} Kh7 {[%emt 0:00:26]} 31. Be3 {[%emt 0:03:51] [#]} Nxe3 {[%emt 0:01:10]} (31... Rd3 $1 $19 32. Rxd3 Nxd3) 32. fxe3 $15 {[%emt 0:02:16]} Bf8 $2 {[%emt 0:00:00][%mdl 8192]} 33. Be4 $2 {[%emt 0:00:00]} (33. exd4 $18 Na2 34. Rc2) 33... Bd6 {[%emt 0:00:00][%mdl 8192]} 34. Kg2 $2 {[%emt 0:00:00]} (34. exd4 $18 Na2 35. Rc2 Bxe5 36. dxe5 Qxe5 37. Rxa2) 34... Kg7 $2 {[%emt 0:00:00][%mdl 8192] White used his chance.  Weighted Error Value: White=0.58/Black=0.12 (very precise)} 1-0

[Event "Tirnavia Reti Memorial-IM 2022"]
[Site "Trnava"]
[Date "2022.08.14"]
[Round "5.10"]
[White "Konyves, Almos"]
[Black "Skreko, Igor"]
[Result "1-0"]
[ECO "E92"]
[WhiteElo "2229"]
[BlackElo "2193"]
[Annotator "TA"]
[PlyCount "83"]
[EventDate "2022.08.10"]
[EventType "tourn"]
[EventCountry "SVK"]
[SourceTitle "playchess.com"]
[Source "ChessBase"]
[SourceQuality "1"]
[TimeControl "40/5400+30:1800+30"]

{[%evp 21,83,31,35,25,43,39,37,0,6,-3,0,0,0,-9,41,40,99,85,108,87,81,84,104,89,91,102,106,102,112,56,97,102,70,60,241,243,242,236,232,242,237,208,220,225,293,275,280,283,296,177,181,115,309,232,301,297,339,344,591,441,2532,2403,29991,1113]} 1. d4 {[%emt 0:01:40]} Nf6 {[%emt 0:00:09]} 2. c4 {[%emt 0:00:09]} g6 {[%emt 0:00:04]} 3. Nc3 {[%emt 0:00:07]} Bg7 {[%emt 0:00:05]} 4. e4 {[%emt 0:00:05]} d6 {[%emt 0:00:04]} 5. Be2 {[%emt 0:00:08]} O-O {[%emt 0:00:13]} 6. Nf3 {[%emt 0:00:05]} e5 {[%emt 0:00:13]} 7. Be3 {[%emt 0:00:13]} Ng4 {[%emt 0:02:38]} 8. Bg5 {[%emt 0:00:06]} f6 {[%emt 0:00:06]} 9. Bh4 {[%emt 0:00:04]} g5 {[%emt 0:00:59]} 10. Bg3 {[%emt 0:00:04]} Nh6 {[%emt 0:00:14]} 11. dxe5 {[%emt 0:00:58]} dxe5 {[%emt 0:00:43]} 12. Qc2 {[%emt 0:00:34] E92: King's Indian: Classical: 6 Be2 e5: 7 dxe5, 7 Be3 and Petrosian System without 7...Nbd7.} g4 {[%emt 0:01:45] was the old line (12...c6).} 13. Rd1 {[%emt 0:04:58]} Qe8 {[%emt 0:06:53] [#]} 14. Nd2 $146 {[%emt 0:00:29] White is slightly better.} ({Predecessor:} 14. Nh4 Nc6 15. Nd5 Qf7 16. Nf5 Nxf5 17. exf5 Qh5 18. Ne3 Nd4 19. Qe4 Nxf5 20. Bxg4 Nxg3 {1-0 (42) Panjwani,R (2407)-Franklin,S (2322) London 2013}) 14... Nc6 {[%emt 0:01:26]} 15. Nb3 {[%emt 0:01:41]} f5 {[%emt 0:05:59]} 16. exf5 {[%emt 0:09:13]} Bxf5 {[%emt 0:06:21]} 17. Qc1 {[%emt 0:01:06]} Nf7 {[%emt 0:07:35]} (17... Nd4 $11) 18. Nd5 $14 {[%emt 0:03:28]} Rc8 {[%emt 0:15:18]} (18... Nd4 $1 $14) 19. O-O {[%emt 0:07:04] White is more active.} Nd6 {[%emt 0:05:40] [#]} (19... Nd4 $2 20. Nxd4 exd4 21. Rfe1 $18) 20. Nxc7 $1 {[%emt 0:13:50][%mdl 512]} Qg6 {[%emt 0:01:12]} 21. Nd5 {[%emt 0:00:26][%cal Ob3a5]} Bh6 {[%emt 0:00:45]} 22. Ne3 {[%emt 0:15:32]} Ne4 {[%emt 0:12:14]} 23. c5 {[%emt 0:01:39]} Kh8 {[%emt 0:04:28]} 24. Bb5 {[%emt 0:08:29]} b6 {[%emt 0:07:20]} 25. Qc4 {[%emt 0:10:04]} ({Better is} 25. Bxc6 $16 Nxg3 26. hxg3 Qxc6 27. Qc3) 25... Nxg3 {[%emt 0:02:49]} 26. hxg3 {[%emt 0:00:05] aiming for Rd6.} Be6 {[%emt 0:00:11]} 27. Qc3 {[%emt 0:03:15] Black must now prevent Rd6.} Bxb3 $2 {[%emt 0:02:56]} (27... Nd4 $14 28. Nxd4 exd4 29. Qxd4+ Bg7) 28. Rd6 $18 {[%emt 0:07:22]} (28. axb3 Nd4 29. Qd3 Rxc5 $11) 28... Rf6 {[%emt 0:03:03]} 29. Rxf6 {[%emt 0:03:06]} (29. axb3 $6 Nd4 30. Rxf6 (30. Bd3 Rxd6 31. Bxg6 Ne2+ 32. Kh2 Nxc3 $16) 30... Qxf6) 29... Qxf6 {[%emt 0:00:05]} 30. cxb6 {[%emt 0:01:17]} (30. axb3 $6 Nd4) (30. Nxg4 $6 Qe6) 30... axb6 {[%emt 0:04:34][%cal Ob3e6]} (30... Bxe3 $2 31. b7 (31. Qxe3 Bd5 $16) 31... Rb8 32. fxe3 $18) 31. axb3 {[%emt 0:01:59]} ({Don't do} 31. Qxb3 $6 Nd4 32. Qd5 (32. Nxg4 Qg7 $15) 32... Rc5 33. Qa8+ Qf8 34. Qxf8+ Bxf8 $16) 31... Na7 {[%emt 0:01:29]} 32. Bc4 {[%emt 0:01:04]} ({Weaker is} 32. Nxg4 Qe6 33. Qxe5+ (33. Qb4 Bf8 $17) 33... Qxe5 34. Nxe5 Nxb5 $15) 32... Qg5 {[%emt 0:03:41]} 33. Qb4 {[%emt 0:00:57]} Qg6 {[%emt 0:01:14]} 34. Qe7 {[%emt 0:01:20]} Nc6 {[%emt 0:00:19]} 35. Qd7 {[%emt 0:00:43]} (35. Qb7 $142 Rb8 36. Qc7) 35... Rd8 {[%emt 0:01:16]} 36. Qxg4 {[%emt 0:00:17]} (36. Qc7 $18) 36... Qf6 $2 {[%emt 0:03:02]} (36... Bxe3 $16 {was called for.} 37. Qxg6 Bxf2+ 38. Kxf2 hxg6) 37. Nd5 {[%emt 0:00:45]} Qd6 {[%emt 0:00:19][%cal Ob6b5]} 38. Nxb6 {[%emt 0:01:46]} Nb4 {[%emt 0:00:54]} 39. Na4 {[%emt 0:00:19]} Qd2 $2 {[%emt 0:00:21]} (39... Nc6 40. Nc3 Qg6) 40. Nc3 {[%emt 0:00:36] [#] Threatens to win with Rd1.} Qxb2 {[%emt 0:00:42]} (40... Qg5 $142 41. Qe4 Qg6 42. Qxe5+ Bg7) 41. Qh4 {[%emt 0:31:21][%csl LRd8,LRh6] White threatens Qf6+ and mate.} Rd6 {[%emt 0:05:19] Against Qf6+} 42. Ne4 {[%emt 0:00:00] Weighted Error Value: White=0.20 (precise) /Black=0.67} (42. Qe7 $142 Nd5 43. Bxd5 Rxd5 44. Nxd5 e4 45. Nf6 Qxf6 46. Qxf6+ Kg8 47. Ra1 Bf8 48. Ra8 h5 49. Rxf8+ Kh7 50. Rh8#) 1-0

[Event "Tirnavia Reti Memorial-IM 2022"]
[Site "Trnava"]
[Date "2022.08.16"]
[Round "7.6"]
[White "Bures, Jaroslav"]
[Black "Papp, Levente"]
[Result "1-0"]
[ECO "C03"]
[WhiteElo "2416"]
[BlackElo "2394"]
[Annotator "RC"]
[PlyCount "107"]
[EventDate "2022.08.10"]
[EventType "tourn"]
[EventCountry "SVK"]
[SourceTitle "playchess.com"]
[Source "ChessBase"]
[SourceQuality "1"]
[TimeControl "40/5400+30:1800+30"]

1. e4 {[%emt 0:00:10]} e6 {[%emt 0:00:22]} 2. d4 {[%emt 0:00:06]} d5 {[%emt 0:00:04]} 3. Nd2 {[%emt 0:00:01]} Be7 {[%emt 0:01:13]} 4. c3 {[%emt 0:08:01]} Nf6 {[%emt 0:01:52]} 5. e5 {[%emt 0:00:28]} Nfd7 {[%emt 0:00:11]} 6. f4 {[%emt 0:03:06]} O-O {[%emt 0:05:12]} 7. Ndf3 {[%emt 0:00:10]} f6 {[%emt 0:02:01]} 8. h4 {[%emt 0:02:32]} c5 {[%emt 0:14:09]} 9. Bd3 {[%emt 0:01:43]} f5 {[%emt 0:01:06]} 10. Ng5 {[%emt 0:01:34]} Re8 {[%emt 0:07:36]} 11. g4 {[%emt 0:14:39]} cxd4 {[%emt 0:18:17]} 12. gxf5 {[%emt 0:01:27]} exf5 {[%emt 0:04:39]} 13. Bxf5 {[%emt 0:02:40]} Nf8 {[%emt 0:01:19]} 14. Bxc8 {[%emt 0:00:32]} Qxc8 {[%emt 0:00:07]} 15. Qxd4 {[%emt 0:00:03]} Bxg5 {[%emt 0:02:05]} 16. Qxd5+ {[%emt 0:00:28]} Kh8 {[%emt 0:00:06]} 17. hxg5 {[%emt 0:00:23]} Nc6 {[%emt 0:09:30]} 18. Be3 {[%emt 0:01:13]} Qg4 {[%emt 0:07:11]} 19. Nf3 {[%emt 0:12:24]} Qg3+ {[%emt 0:12:34]} 20. Kf1 {[%emt 0:03:13]} Ng6 {[%emt 0:02:04]} 21. Qe4 {[%emt 0:00:21]} Kg8 {[%emt 0:00:37]} 22. Rg1 {[%emt 0:09:01]} Qh3+ {[%emt 0:00:59]} 23. Ke2 {[%emt 0:00:07]} Rad8 {[%emt 0:01:10]} 24. Rad1 {[%emt 0:01:34]} Nge7 {[%emt 0:02:52]} 25. Rh1 {[%emt 0:08:01]} Qg2+ {[%emt 0:00:21]} 26. Bf2 {[%emt 0:00:04]} Rxd1 {[%emt 0:02:09]} 27. Qxh7+ {[%emt 0:00:13]} Kf7 {[%emt 0:00:26]} 28. e6+ {[%emt 0:01:15]} Kxe6 {[%emt 0:00:33]} 29. Qe4+ {[%emt 0:00:15]} Kf7 {[%emt 0:01:10]} 30. Ne5+ {[%emt 0:00:16]} Nxe5 {[%emt 0:00:02]} 31. Qxg2 {[%emt 0:00:09]} Rxh1 {[%emt 0:00:07]} 32. Qxh1 {[%emt 0:00:35]} N5c6 {[%emt 0:00:32]} 33. Kf3 {[%emt 0:01:08]} Rd8 {[%emt 0:00:32]} 34. Qh5+ {[%emt 0:07:21]} g6 {[%emt 0:00:19]} 35. Qh7+ {[%emt 0:00:07]} Ke6 {[%emt 0:00:01]} 36. Bc5 {[%emt 0:01:26]} Rd3+ {[%emt 0:04:06]} 37. Ke2 {[%emt 0:00:49]} Rd5 {[%emt 0:00:06]} 38. Bxe7 {[%emt 0:01:11]} Nxe7 {[%emt 0:00:01]} 39. Qh8 {[%emt 0:01:53]} Kd7 {[%emt 0:01:33]} 40. Qb8 {[%emt 0:03:38]} Rb5 {[%emt 0:00:24]} 41. b3 {[%emt 0:30:35]} Nc6 {[%emt 0:07:25]} 42. Qh8 {[%emt 0:00:00]} Ra5 {[%emt 0:00:48]} 43. Qh3+ {[%emt 0:00:00]} Rf5 {[%emt 0:00:53]} 44. Ke3 {[%emt 0:00:00]} Ne7 {[%emt 0:00:22]} 45. Ke4 {[%emt 0:00:00]} a6 {[%emt 0:02:02]} 46. c4 {[%emt 0:00:00]} b5 {[%emt 0:03:31]} 47. c5 {[%emt 0:00:00]} Ke6 {[%emt 0:01:44]} 48. b4 {[%emt 0:00:00]} Nd5 {[%emt 0:01:40]} 49. a3 {[%emt 0:00:00]} Ne7 {[%emt 0:00:10]} 50. Qh8 {[%emt 0:00:00]} a5 {[%emt 0:00:52]} 51. Qb8 {[%emt 0:00:00]} axb4 {[%emt 0:00:14]} 52. axb4 {[%emt 0:00:00]} Nd5 {[%emt 0:00:28]} 53. Qd6+ {[%emt 0:00:00]} Kf7 {[%emt 0:00:02]} 54. Qxd5+ {[%emt 0:00:00]} 1-0

[Event "Tirnavia Reti Memorial-IM 2022"]
[Site "Trnava"]
[Date "2022.08.16"]
[Round "7.7"]
[White "Svana, Peter"]
[Black "Lanc, Alois"]
[Result "0-1"]
[ECO "A55"]
[WhiteElo "2280"]
[BlackElo "2263"]
[Annotator "NA RC"]
[PlyCount "130"]
[EventDate "2022.08.10"]
[EventType "tourn"]
[EventCountry "SVK"]
[SourceTitle "playchess.com"]
[Source "ChessBase"]
[SourceQuality "1"]
[TimeControl "40/5400+30:1800+30"]

1. d4 {[%emt 0:00:07]} Nf6 {[%emt 0:00:06]} 2. c4 {[%emt 0:00:45]} d6 {[%emt 0:00:33]} 3. Nf3 {[%emt 0:00:11]} Nbd7 {[%emt 0:00:39]} 4. Nc3 {[%emt 0:00:08]} e5 {[%emt 0:00:13]} 5. e4 {[%emt 0:00:05]} Be7 {[%emt 0:00:29]} 6. Be2 {[%emt 0:00:15]} O-O {[%emt 0:00:07]} 7. O-O {[%emt 0:00:05]} Re8 {[%emt 0:02:20]} 8. Re1 {[%emt 0:01:46]} c6 {[%emt 0:01:20]} 9. h3 {[%emt 0:01:54]} Bf8 {[%emt 0:00:22]} 10. Bf1 {[%emt 0:08:10]} a6 {[%emt 0:05:30]} 11. Rb1 {[%emt 0:04:50]} exd4 {[%emt 0:01:41]} 12. Nxd4 {[%emt 0:00:09]} Nc5 {[%emt 0:17:08]} 13. f3 {[%emt 0:05:48]} a5 {[%emt 0:06:24]} 14. Nde2 {[%emt 0:05:55]} d5 {[%emt 0:03:04]} 15. cxd5 {[%emt 0:08:05]} cxd5 {[%emt 0:00:00]} 16. Bg5 $1 {[%emt 0:10:42]} ({Don't go for} 16. exd5 $2 Bf5 17. Bg5 Nd3 $19) 16... dxe4 {[%emt 0:04:44]} 17. Qxd8 {[%emt 0:03:05]} Rxd8 {[%emt 0:00:01]} 18. fxe4 {[%emt 0:03:34]} Nd3 {[%emt 0:13:35]} 19. Red1 {[%emt 0:01:00]} Bc5+ {[%emt 0:00:36]} 20. Kh2 {[%emt 0:00:20]} Be6 $11 {[%emt 0:02:40]} 21. Ng3 {[%emt 0:10:08]} Ne5 {[%emt 0:01:01]} 22. Nd5 {[%emt 0:01:53]} Nxd5 {[%emt 0:15:13]} 23. Bxd8 {[%emt 0:01:02]} Ne3 {[%emt 0:00:10]} 24. Bc7 {[%emt 0:07:39]} Nxd1 {[%emt 0:05:36]} 25. Bxe5 {[%emt 0:01:31]} Ne3 {[%emt 0:01:19]} 26. Be2 {[%emt 0:01:16]} f6 {[%emt 0:02:55]} 27. Rc1 {[%emt 0:01:17]} b6 {[%emt 0:03:50]} 28. Bf4 {[%emt 0:03:59]} g5 {[%emt 0:00:11]} 29. Bxe3 {[%emt 0:00:13]} Bxe3 {[%emt 0:00:02]} 30. Rc6 {[%emt 0:00:44]} Bxa2 {[%emt 0:06:25]} 31. Nh5 {[%emt 0:00:28]} Bd4 {[%emt 0:00:36]} 32. Nxf6+ {[%emt 0:00:12]} Kg7 {[%emt 0:00:56]} 33. Nd5 {[%emt 0:05:33]} Re8 {[%emt 0:01:22]} 34. Bd3 {[%emt 0:04:03]} Bxd5 {[%emt 0:01:29]} 35. exd5 {[%emt 0:00:04]} Re3 {[%emt 0:00:15]} 36. Bf5 {[%emt 0:01:14]} Re2 {[%emt 0:01:48]} 37. b3 {[%emt 0:02:53]} Be5+ {[%emt 0:00:56]} 38. Kg1 {[%emt 0:00:25]} Bg3 {[%emt 0:00:12]} 39. Rc1 {[%emt 0:02:22]} Rd2 {[%emt 0:01:15]} 40. Be4 {[%emt 0:01:05]} Kf6 {[%emt 0:01:53]} 41. Kf1 {[%emt 0:32:48]} Ke5 {[%emt 0:30:51]} 42. Bxh7 {[%emt 0:01:08]} Rf2+ {[%emt 0:01:11]} 43. Kg1 {[%emt 0:00:14]} Rb2 {[%emt 0:00:26]} 44. Rc3 {[%emt 0:00:52]} Bf2+ {[%emt 0:00:00]} 45. Kf1 {[%emt 0:00:00]} Bd4 {[%emt 0:00:00]} 46. Rg3 {[%emt 0:00:00]} Kd6 {[%emt 0:00:00]} 47. Rxg5 {[%emt 0:00:00]} Rxb3 {[%emt 0:00:00]} 48. Rg6+ {[%emt 0:00:00]} Kd7 {[%emt 0:00:00]} 49. Rg4 {[%emt 0:00:00]} Be5 {[%emt 0:00:00]} 50. Bf5+ {[%emt 0:00:00]} Kd8 {[%emt 0:00:00]} 51. Rg6 {[%emt 0:00:00]} Rb4 {[%emt 0:00:00]} 52. g4 {[%emt 0:00:00]} Rd4 {[%emt 0:00:00]} 53. Rxb6 {[%emt 0:00:00]} Rxd5 {[%emt 0:00:00]} 54. h4 {[%emt 0:00:00]} Kc7 {[%emt 0:00:00]} 55. Ra6 {[%emt 0:00:00]} Kb7 {[%emt 0:00:00]} 56. Re6 {[%emt 0:00:00]} Rc5 {[%emt 0:00:00]} 57. h5 {[%emt 0:00:00]} a4 {[%emt 0:00:00]} 58. Be4+ {[%emt 0:00:00]} Ka7 {[%emt 0:00:00]} 59. Bd3 {[%emt 0:00:00]} Ra5 {[%emt 0:00:00]} 60. h6 {[%emt 0:00:56]} a3 {[%emt 0:00:00]} 61. Rxe5 {[%emt 0:02:18]} Rxe5 {[%emt 0:00:00]} 62. Bc4 {[%emt 0:00:11]} Re7 {[%emt 0:00:00]} 63. g5 {[%emt 0:00:21]} Rc7 {[%emt 0:00:00]} 64. Bg8 {[%emt 0:03:50]} Rc1+ {[%emt 0:00:00]} 65. Kg2 {[%emt 0:00:28]} Rc5 {[%emt 0:00:00]} 0-1

[Event "Tirnavia Reti Memorial-IM 2022"]
[Site "Trnava"]
[Date "2022.08.16"]
[Round "7.9"]
[White "Konyves, Almos"]
[Black "Skreno, Vladimir"]
[Result "1-0"]
[ECO "A52"]
[WhiteElo "2229"]
[BlackElo "2083"]
[Annotator "NA"]
[PlyCount "107"]
[EventDate "2022.08.10"]
[EventType "tourn"]
[EventCountry "SVK"]
[SourceTitle "playchess.com"]
[Source "ChessBase"]
[SourceQuality "1"]
[TimeControl "40/5400+30:1800+30"]

1. d4 {[%emt 0:02:11]} Nf6 {[%emt 0:00:18]} 2. c4 {[%emt 0:00:11]} e5 {[%emt 0:00:06]} 3. dxe5 {[%emt 0:01:01]} Ng4 {[%emt 0:00:43]} 4. Bf4 {[%emt 0:00:26]} Nc6 {[%emt 0:00:35]} 5. Nf3 {[%emt 0:00:24]} Bb4+ {[%emt 0:00:37]} 6. Nbd2 {[%emt 0:00:05]} Qe7 {[%emt 0:00:40]} 7. e3 {[%emt 0:02:04]} Ngxe5 {[%emt 0:00:56]} 8. Nxe5 {[%emt 0:00:08]} Nxe5 {[%emt 0:00:30]} 9. a3 {[%emt 0:00:16]} Bxd2+ {[%emt 0:02:24]} 10. Qxd2 {[%emt 0:00:05]} d6 {[%emt 0:01:16]} 11. Be2 {[%emt 0:00:44]} a5 {[%emt 0:08:29]} 12. b3 {[%emt 0:03:54]} O-O {[%emt 0:00:48]} 13. O-O {[%emt 0:00:06]} Re8 {[%emt 0:13:40]} 14. Rfd1 {[%emt 0:09:15]} b6 {[%emt 0:02:42]} 15. Qd5 {[%emt 0:01:17]} Be6 {[%emt 0:03:44]} 16. Qd4 {[%emt 0:00:14]} Bf5 {[%emt 0:12:58]} 17. b4 {[%emt 0:09:41]} Nd7 {[%emt 0:03:55]} 18. Bf3 {[%emt 0:09:01]} Be4 {[%emt 0:03:38]} 19. Bg4 {[%emt 0:03:03]} f5 {[%emt 0:05:11]} 20. Be2 {[%emt 0:04:27]} Bc6 {[%emt 0:02:59]} 21. Bd3 {[%emt 0:21:04]} Rf8 {[%emt 0:07:53]} 22. Bc2 {[%emt 0:02:56]} Qf6 {[%emt 0:03:37]} 23. Qxf6 {[%emt 0:02:44]} Rxf6 {[%emt 0:00:14]} 24. h3 {[%emt 0:01:02]} h6 {[%emt 0:01:57]} 25. h4 {[%emt 0:04:19]} Rff8 {[%emt 0:03:41]} 26. f3 {[%emt 0:03:13]} Rf6 {[%emt 0:02:13]} 27. Kf2 {[%emt 0:00:49]} Kf8 {[%emt 0:02:35]} 28. Rg1 {[%emt 0:04:25]} Ne5 {[%emt 0:01:48]} 29. c5 {[%emt 0:02:38]} bxc5 {[%emt 0:03:35]} 30. bxc5 {[%emt 0:00:05]} Ng6 {[%emt 0:01:19]} 31. cxd6 {[%emt 0:03:21]} Nxf4 {[%emt 0:00:32]} 32. exf4 {[%emt 0:00:05]} cxd6 {[%emt 0:03:03]} 33. Rab1 {[%emt 0:01:33]} Bd7 {[%emt 0:03:08]} 34. Bd3 {[%emt 0:01:45]} d5 {[%emt 0:00:55]} 35. Rb7 {[%emt 0:00:44]} Bc8 {[%emt 0:01:17]} 36. Rb5 {[%emt 0:02:14]} Rd6 {[%emt 0:00:47]} 37. Rc1 {[%emt 0:01:23]} Bd7 {[%emt 0:01:19]} 38. Rb7 {[%emt 0:00:17]} Bc8 {[%emt 0:01:08]} 39. Rbc7 {[%emt 0:00:19]} Bd7 {[%emt 0:01:03]} 40. Rb1 {[%emt 0:00:09]} Ke8 {[%emt 0:01:10]} 41. Rbb7 {[%emt 0:32:56]} Kd8 {[%emt 0:02:10]} 42. a4 {[%emt 0:00:00]} Rc8 {[%emt 0:01:32]} 43. Rxd7+ {[%emt 0:00:00]} Rxd7 {[%emt 0:00:37]} 44. Rxd7+ {[%emt 0:00:00]} Kxd7 {[%emt 0:01:01]} 45. Bxf5+ {[%emt 0:00:00]} Kc7 {[%emt 0:00:16]} 46. Bxc8 {[%emt 0:00:00]} Kxc8 {[%emt 0:00:02]} 47. Ke3 {[%emt 0:00:00]} Kd7 {[%emt 0:01:02]} 48. h5 {[%emt 0:00:00]} Ke6 {[%emt 0:00:48]} 49. g4 {[%emt 0:00:00]} Kd6 {[%emt 0:00:09]} 50. Kd4 {[%emt 0:00:00]} Kc6 {[%emt 0:00:13]} 51. f5 {[%emt 0:00:00]} Kd6 {[%emt 0:00:09]} 52. f4 {[%emt 0:00:00]} Kc6 {[%emt 0:00:14]} 53. g5 {[%emt 0:00:00]} Kd6 {[%emt 0:00:19]} 54. f6 {[%emt 0:00:00]} 1-0